bitfinex-derivatives/quotes_ETHF0:USTF0_20240920
["timestamp","ask_amount","ask_price","bid_price","bid_amount"]
[1726852794011,3.03022791,2548.3,2548.2,4.42701]
[1726852794212,3.03022791,2548.4,2548.3,1.37338]
[1726852794422,3.2078,2548.6,2548.5,0.39236]
[1726852794623,4.86295302,2548.6,2548.5,3.45236]
[1726852794816,4.86295302,2548.6,2548.5,4.43328]
[1726852795212,1.65515302,2548.6,2548.5,8.622]
[1726852795424,7.68916589,2549.1,2548.6,0.98088]
[1726852795622,4.28590678,2549.0,2548.9,0.3923]
[1726852796425,7.82117267,2549.0,2548.9,0.3923]
[1726852797321,4.28590678,2549.0,2548.9,0.3923]
[1726852797521,7.82117267,2549.0,2548.9,0.3923]
[1726852798022,4.28590678,2549.0,2548.9,0.3923]
[1726852798323,7.82117267,2549.0,2548.9,0.3923]
[1726852799320,4.2854417,2549.0,2548.9,0.3923]
[1726852800416,4.6777317,2549.0,2548.8,3.45231]
[1726852800629,4.28444876,2548.9,2548.8,3.06]
[1726852800826,4.28444876,2548.9,2548.8,0.39232]
[1726852801029,2.0402606,2548.9,2548.8,0.39232]
[1726852801532,1.6479606,2548.9,2548.8,0.39232]
[1726852802823,1.64678737,2548.9,2548.8,0.39232]
[1726852803222,2.03908737,2548.9,2548.4,8.73105]
[1726852803421,5.13459,2549.1,2548.4,8.73105]
[1726852803422,2.55024373,2548.6,2548.5,1.37328]
[1726852803828,4.1970311,2548.6,2548.5,1.37328]
[1726852805429,1.64678737,2548.6,2548.5,1.37328]
[1726852805633,2.55024373,2548.7,2548.6,1.37323]
[1726852805840,2.55024373,2549.0,2548.8,0.9808]
[1726852806029,4.1539,2549.1,2548.7,3.90493]
[1726852806219,4.1539,2549.1,2548.7,0.4526]
[1726852806220,2.54994545,2548.9,2548.7,0.4526]
[1726852806425,0.4717,2548.8,2548.7,0.39233]
[1726852808429,4.1539,2549.1,2548.9,0.39229]
[1726852808628,0.87579,2549.0,2548.9,0.39229]
[1726852808821,0.4835,2549.0,2548.9,0.39229]
[1726852809327,3.10688516,2549.0,2548.9,0.39229]
[1726852809828,0.3923,2548.9,2548.8,0.39231]
[1726852810029,3.10688516,2549.0,2548.6,0.98087]
[1726852810030,7.03445105,2549.0,2548.6,0.98087]
[1726852810224,3.06097527,2548.8,2548.5,4.04091]
[1726852810426,3.06097527,2548.8,2548.7,0.39233]
[1726852810623,5.68436043,2548.8,2548.7,0.39233]
[1726852810823,3.06097527,2548.8,2548.7,0.39233]
[1726852811825,3.06097527,2549.0,2548.9,0.3923]
[1726852812022,4.00707527,2549.1,2549.0,1.37301]
[1726852812329,3.06097527,2549.2,2549.1,0.39227]
[1726852812525,3.06097527,2549.2,2549.1,4.43295]
[1726852812727,2.62549744,2549.3,2549.2,0.39226]
[1726852812728,3.06097527,2549.3,2549.2,0.39226]
[1726852813035,5.68665315,2549.3,2549.2,0.39226]
[1726852813333,2.62567788,2549.3,2549.2,0.39226]
[1726852815334,6.1291019,2549.0,2548.6,4.6803]
[1726852815634,3.50415721,2549.0,2548.9,0.3923]
[1726852815954,7.76896503,2549.0,2548.9,0.3923]
[1726852816131,4.63432557,2549.0,2548.9,0.3923]
[1726852816434,8.94989219,2549.0,2548.8,0.39231]
[1726852816628,1.64038275,2548.9,2548.8,0.39232]
[1726852817439,1.64039829,2548.9,2548.8,0.39232]
[1726852817934,4.19081316,2548.9,2548.8,0.39232]
[1726852818930,1.64039829,2548.9,2548.8,0.39232]
[1726852824334,2.99401487,2549.0,2548.9,1.37306]
[1726852824335,2.04311718,2549.0,2548.9,1.37306]
[1726852824535,2.55041487,2549.2,2549.1,0.39227]
[1726852824743,2.55041487,2549.3,2549.2,0.39226]
[1726852824941,4.19307524,2549.3,2549.2,0.39226]
[1726852825333,1.64266037,2549.3,2549.2,0.39226]
[1726852826031,1.64283557,2549.3,2549.2,0.39226]
[1726852827738,0.39226,2549.2,2548.8,0.98079]
[1726852827938,2.55492735,2549.0,2548.8,0.39232]
[1726852828135,0.4598,2548.9,2548.8,1.37311]
[1726852828338,2.95700916,2548.9,2548.8,0.39232]
[1726852828542,5.11136239,2548.9,2548.8,0.39232]
[1726852829549,2.55643504,2548.9,2548.8,0.39232]
[1726852829740,5.11159113,2548.9,2548.8,1.37312]
[1726852829941,4.19839113,2548.9,2548.8,0.39232]
[1726852830242,5.11159113,2548.9,2548.8,0.39232]
[1726852830639,5.11220026,2548.9,2548.8,0.39232]
[1726852831243,7.07811333,2548.9,2548.8,0.39232]
[1726852831442,8.7219575,2548.9,2548.8,0.39232]
[1726852831840,5.18669161,2548.9,2548.8,0.39232]
[1726852832235,5.57900161,2548.9,2548.5,4.219]
[1726852832435,0.39235,2548.6,2548.3,0.39238]
[1726852832642,3.06577601,2548.4,2548.2,0.39241]
[1726852832848,0.4579,2548.3,2548.2,0.39241]
[1726852833345,5.12379161,2548.3,2547.9,3.2078]
[1726852833545,3.06603082,2548.1,2548.0,0.39243]
[1726852833843,4.27349161,2548.1,2548.0,0.39243]
[1726852834040,4.74419161,2548.1,2548.0,0.39243]
[1726852834551,0.39245,2548.0,2547.7,0.39248]
[1726852834735,0.39245,2548.0,2547.5,3.06]
[1726852834736,7.91772095,2547.9,2547.5,3.06]
[1726852834933,7.80666839,2547.8,2547.7,0.39248]
[1726852835141,4.74059161,2547.8,2547.7,0.39248]
[1726852835846,4.74059161,2547.8,2547.3,8.7859]
[1726852835847,4.74059161,2547.8,2547.6,0.39249]
[1726852836149,4.74059161,2547.8,2547.3,7.6269]
[1726852836150,7.48129161,2547.7,2547.3,3.9613]
[1726852836443,7.33864396,2547.6,2547.5,0.39251]
[1726852836946,7.3386816,2547.6,2547.5,0.39251]
[1726852837146,7.3386816,2547.6,2547.5,3.45251]
[1726852837344,3.06518999,2547.7,2547.6,0.3925]
[1726852837647,7.40689391,2547.7,2547.6,0.3925]
[1726852838451,1.66988612,2547.7,2547.6,0.3925]
[1726852838750,3.06518999,2547.7,2547.6,0.3925]
[1726852839048,3.06518999,2547.7,2547.3,3.9613]
[1726852839245,1.9245078,2547.6,2547.4,0.39252]
[1726852839452,1.9245078,2547.6,2547.3,3.9613]
[1726852839453,2.0126078,2547.6,2547.5,0.39252]
[1726852839651,0.8731,2547.6,2547.5,0.39252]
[1726852839846,0.39256,2547.3,2547.1,0.39256]
[1726852840052,1.97583505,2547.2,2547.0,0.39259]
[1726852840243,0.3926,2547.0,2546.7,8.2585]
[1726852840443,1.01973257,2546.9,2546.7,8.2585]
[1726852840642,1.01963139,2546.8,2546.7,8.2585]
[1726852841147,1.01963139,2546.8,2546.7,7.67264]
[1726852841559,0.39269,2546.4,2546.1,10.4878]
[1726852841849,1.01878738,2546.5,2546.4,0.39268]
[1726852842245,1.01878738,2546.6,2546.3,3.06]
[1726852842440,1.41143738,2546.7,2546.3,3.06]
[1726852842843,1.01878738,2546.7,2546.6,0.39266]
[1726852843043,1.41142738,2546.7,2546.6,0.39266]
[1726852843239,1.41142738,2546.7,2546.5,0.39266]
[1726852843443,1.41142738,2546.7,2546.3,3.06]
[1726852843444,0.39266,2546.6,2546.3,3.06]
[1726852843646,4.22658738,2546.8,2546.4,0.39268]
[1726852843647,0.39267,2546.5,2546.4,0.39268]
[1726852843847,0.39267,2546.5,2546.1,10.4878]
[1726852843848,0.39269,2546.4,2546.1,10.4878]
[1726852844153,0.84099,2546.4,2546.3,0.39269]
[1726852844449,0.4483,2546.4,2546.2,0.39271]
[1726852844651,0.84099,2546.4,2546.3,0.3927]
[1726852845041,0.4483,2546.4,2546.0,0.4903]
[1726852845352,0.4483,2546.4,2544.8,3.06]
[1726852845353,8.31047706,2546.2,2544.8,3.06]
[1726852845553,0.39291,2545.0,2544.8,3.45292]
[1726852845751,3.2078,2545.1,2544.6,3.06]
[1726852846148,3.2078,2545.1,2544.3,10.4758]
[1726852846353,3.2078,2544.8,2544.4,0.39299]
[1726852846557,3.2078,2544.8,2544.3,7.268]
[1726852846753,3.60069,2545.1,2544.7,3.06]
[1726852846950,3.2078,2545.1,2545.0,0.3929]
[1726852847256,3.2078,2545.1,2544.8,0.39293]
[1726852847555,3.60069,2545.1,2544.9,0.39291]
[1726852847754,3.60069,2545.1,2544.7,3.06]
[1726852847952,3.60069,2545.1,2544.9,0.39292]
[1726852848649,3.60069,2545.1,2544.8,0.39292]
[1726852848848,3.2078,2545.1,2544.7,3.06]
[1726852849242,3.2078,2545.1,2544.9,0.39292]
[1726852849447,0.3929,2545.0,2544.7,3.45294]
[1726852849647,3.60069,2545.1,2544.8,0.39293]
[1726852850052,3.2078,2545.1,2544.9,0.39291]
[1726852850444,3.2078,2545.1,2544.7,3.06]
[1726852850649,3.60069,2545.1,2544.8,0.39293]
[1726852850952,3.2078,2545.1,2544.2,5.19255]
[1726852851254,3.2078,2545.1,2544.6,0.39295]
[1726852851448,0.39291,2545.0,2544.7,0.39294]
[1726852853153,3.6007,2545.1,2544.8,0.39293]
[1726852853355,3.6007,2545.1,2544.8,3.06]
[1726852853356,3.2078,2545.1,2544.8,3.06]
[1726852853655,3.60069,2545.1,2544.8,0.39292]
[1726852853851,3.60069,2545.1,2544.6,3.06]
[1726852854158,3.60069,2545.1,2544.9,0.39292]
[1726852854159,3.2078,2545.1,2544.9,0.39292]
[1726852854359,3.60069,2545.1,2544.8,0.39292]
[1726852854548,3.60069,2545.1,2544.6,3.06]
[1726852854549,0.39291,2545.0,2544.7,0.39294]
[1726852855057,3.2078,2545.1,2544.6,0.39295]
[1726852855255,0.98226,2545.0,2544.4,4.21]
[1726852855460,0.98226,2545.0,2543.8,11.26541]
[1726852855461,0.39296,2544.6,2543.9,4.51067]
[1726852855658,0.39296,2544.7,2544.4,0.39299]
[1726852855860,0.84766,2544.7,2544.4,0.39299]
[1726852856061,0.84766,2544.7,2544.4,0.39298]
[1726852856359,0.39299,2544.5,2544.1,3.6897]
[1726852856656,0.84766,2544.7,2544.4,0.39299]
[1726852856858,0.39297,2544.6,2544.4,0.39299]
[1726852857155,0.84766,2544.7,2544.5,0.39297]
[1726852857669,0.4547,2544.7,2544.2,3.06]
[1726852857960,0.4547,2544.7,2544.5,0.39297]
[1726852858363,0.4547,2544.7,2544.6,0.39296]
[1726852858662,0.4547,2544.7,2544.5,0.39297]
[1726852859571,0.84765,2544.7,2544.5,0.39297]
[1726852859864,0.39297,2544.6,2544.4,0.39299]
[1726852860054,0.39299,2544.5,2544.3,0.393]
[1726852860248,3.6625,2544.7,2544.3,0.393]
[1726852860249,0.39296,2544.6,2544.3,0.393]
[1726852860554,0.39296,2544.6,2544.0,4.21]
[1726852860555,0.39302,2544.3,2544.0,0.39304]
[1726852860755,0.39302,2544.3,2544.1,0.39304]
[1726852860952,0.98255,2544.3,2543.9,3.06]
[1726852861151,0.98255,2544.3,2543.9,0.39307]
[1726852861152,0.4633,2544.3,2543.9,0.39307]
[1726852861351,0.39304,2544.1,2543.9,0.39307]
[1726852861552,0.39303,2544.2,2544.0,0.39306]
[1726852861759,0.39303,2544.2,2544.0,0.39305]
[1726852862161,0.85632,2544.3,2544.1,0.39303]
[1726852862463,0.4633,2544.3,2543.7,4.04275]
[1726852862652,0.4633,2544.3,2544.0,0.39305]
[1726852862855,0.4633,2544.3,2544.1,0.39304]
[1726852863056,3.2078,2544.4,2544.3,0.39301]
[1726852863259,3.2078,2544.4,2544.2,3.45302]
[1726852863567,3.2078,2544.4,2544.2,0.39302]
[1726852863863,3.6008,2544.4,2544.0,3.06]
[1726852864164,3.6766,2544.4,2544.2,0.39302]
[1726852864359,3.6766,2544.4,2544.3,0.39301]
[1726852865264,3.6766,2544.4,2544.2,0.39302]
[1726852865465,3.6766,2544.4,2544.0,3.06]
[1726852865852,3.6766,2544.4,2544.3,0.39301]
[1726852866164,3.6766,2544.4,2544.2,0.39302]
[1726852866465,4.0696,2544.4,2544.2,0.39302]
[1726852866856,3.6766,2544.4,2543.9,0.98268]
[1726852867074,3.6766,2544.4,2544.2,0.39302]
[1726852867267,3.6766,2544.4,2544.3,0.39301]
[1726852867457,3.2078,2544.4,2544.3,0.39301]
[1726852867652,3.2078,2544.4,2544.3,7.38341]
[1726852868061,3.2078,2544.4,2544.3,3.45301]
[1726852868665,3.2078,2544.4,2544.3,0.39301]
[1726852869362,3.2078,2545.0,2544.5,0.98244]
[1726852869551,0.98216,2545.3,2544.5,0.98244]
[1726852869552,0.4558,2545.1,2544.9,0.39291]
[1726852869760,0.84869,2545.1,2544.9,0.39291]
[1726852869965,0.84869,2545.1,2544.6,6.2678]
[1726852869966,0.8487,2545.1,2544.6,6.2678]
[1726852870163,0.8487,2545.1,2544.7,0.39294]
[1726852870164,3.6007,2545.0,2544.7,0.39294]
[1726852870359,3.2078,2545.0,2544.8,0.39293]
[1726852870761,3.60071,2545.0,2544.6,3.2078]
[1726852870964,3.60071,2545.0,2544.4,3.06]
[1726852870965,3.2078,2545.0,2544.8,0.39292]
[1726852871265,3.6007,2545.0,2544.8,0.39292]
[1726852871458,3.6007,2545.0,2544.7,0.39294]
[1726852871766,3.6007,2545.0,2544.8,0.39293]
[1726852872565,3.2078,2545.0,2544.8,0.39293]
[1726852873365,3.2078,2545.0,2544.9,0.39292]
[1726852873758,3.60062,2545.6,2544.9,3.9296]
[1726852874055,3.60062,2545.6,2544.7,8.39016]
[1726852874056,3.663,2545.6,2545.5,0.39283]
[1726852874255,0.476,2545.8,2545.7,0.39279]
[1726852874455,0.476,2545.8,2545.5,3.06]
[1726852874858,0.476,2545.8,2545.6,0.3928]
[1726852875161,0.476,2545.8,2545.5,3.06]
[1726852875162,0.476,2545.8,2545.7,0.39279]
[1726852876162,0.476,2545.8,2545.4,0.9496]
[1726852876370,0.476,2545.8,2545.7,0.39279]
[1726852878072,0.86878,2545.8,2545.5,0.39282]
[1726852878274,0.4601,2545.7,2545.3,4.2]
[1726852878569,0.4601,2545.7,2545.5,0.39282]
[1726852878868,0.4601,2545.7,2545.6,0.39281]
[1726852879075,0.476,2545.8,2545.7,0.39279]
[1726852880371,0.39275,2546.0,2545.8,0.39278]
[1726852880668,0.39275,2546.0,2545.7,0.39278]
[1726852880883,3.2078,2545.9,2545.7,0.39278]
[1726852881570,0.4895,2545.8,2545.7,0.39278]
[1726852882870,0.4895,2545.8,2545.6,0.3928]
[1726852883059,0.4895,2545.8,2545.7,0.39279]
[1726852883966,0.4895,2545.8,2545.6,0.3928]
[1726852884163,0.4895,2545.8,2545.7,0.39279]
[1726852884470,1.50379488,2545.8,2545.7,0.39279]
[1726852885671,0.4895,2545.8,2545.7,0.39279]
[1726852885876,0.4895,2545.8,2545.3,11.44993]
[1726852886079,2.01112345,2545.8,2545.7,0.39279]
[1726852886575,0.4895,2545.8,2545.7,0.39279]
[1726852888475,2.53217706,2545.8,2545.7,0.39279]
[1726852888675,2.04267706,2545.8,2545.7,1.37478]
[1726852888875,0.4821,2546.1,2545.7,1.37478]
[1726852888876,2.04267706,2546.1,2546.0,0.98188]
[1726852889180,1.52617681,2546.2,2546.1,0.39273]
[1726852889482,2.04267706,2546.3,2546.2,0.39272]
[1726852891072,2.03571304,2546.3,2546.2,0.39272]
[1726852891582,1.52648762,2546.3,2546.2,0.39272]
[1726852892179,5.12690595,2546.4,2546.3,0.3927]
[1726852892684,9.05410595,2546.4,2546.3,0.3927]
[1726852892887,9.05410595,2546.4,2546.2,0.39271]
[1726852893076,5.12690595,2546.4,2546.3,0.3927]
[1726852893380,5.24351304,2546.4,2545.8,0.9745]
[1726852893576,0.39279,2545.8,2545.5,7.3388]
[1726852893783,1.01701849,2545.9,2545.5,3.2078]
[1726852893979,0.4874,2545.8,2545.7,0.39279]
[1726852894278,1.48801849,2545.9,2545.8,0.39278]
[1726852894682,1.01701849,2546.0,2545.9,0.39276]
[1726852894882,1.99162773,2546.1,2546.0,0.39275]
[1726852894883,0.39274,2546.1,2546.0,0.39275]
[1726852895081,3.60054,2546.1,2546.0,0.39275]
[1726852895382,1.91824773,2546.2,2546.1,0.39273]
[1726852895583,1.91824773,2546.2,2546.0,0.39274]
[1726852895584,0.39273,2546.1,2546.0,0.39274]
[1726852895890,1.01665349,2546.1,2546.0,0.39274]
[1726852896188,1.40938349,2546.1,2546.0,0.39274]
[1726852896485,1.91825773,2546.2,2546.0,0.39274]
[1726852896683,1.91824773,2546.2,2546.1,0.39273]
[1726852896982,0.39272,2546.2,2546.0,0.39274]
[1726852897179,4.61684666,2546.1,2546.0,0.39274]
[1726852897379,3.60053,2546.1,2546.0,0.39274]
[1726852897680,5.12605773,2546.1,2546.0,0.39274]
[1726852897985,3.96988304,2546.3,2546.0,0.39274]
[1726852897986,1.91825773,2546.2,2546.0,0.39274]
[1726852898187,1.40936838,2546.1,2546.0,0.39274]
[1726852898480,0.39273,2546.1,2546.0,0.39274]
[1726852898682,2.03571304,2546.1,2546.0,0.39274]
[1726852899389,2.42844304,2546.1,2546.0,0.39274]
[1726852901191,0.39273,2546.1,2546.0,0.39274]
[1726852901382,2.42562589,2546.1,2546.0,0.39274]
[1726852902178,2.03289589,2546.1,2546.0,0.39274]
[1726852902491,2.42562589,2546.1,2546.0,0.39274]
[1726852902677,2.03289589,2546.1,2546.0,0.39274]
[1726852902879,2.42562589,2546.1,2546.0,0.39274]
[1726852903082,2.03289589,2546.1,2546.0,0.39274]
[1726852904382,0.39272,2546.2,2546.1,0.39273]
[1726852904583,3.60052,2546.2,2546.1,0.39273]
[1726852905186,3.2078,2546.2,2546.1,0.39273]
[1726852905389,3.60052,2546.2,2546.1,0.39273]
[1726852905784,3.50574633,2546.3,2546.1,0.39273]
[1726852906085,2.03478946,2546.2,2546.1,1.37457]
[1726852906292,2.03478946,2546.3,2546.2,1.37452]
[1726852906583,2.03478946,2546.3,2546.2,0.39272]
[1726852906784,1.01749906,2546.4,2546.3,2.35622]
[1726852906974,1.52624859,2546.5,2546.4,0.88779]
[1726852906975,1.01749906,2546.5,2546.4,0.88779]
[1726852907174,1.52624859,2546.6,2546.5,0.39267]
[1726852907383,6.67838946,2546.8,2546.6,0.39266]
[1726852907384,1.91889859,2546.7,2546.6,0.39266]
[1726852907785,5.84529859,2546.7,2546.6,0.39266]
[1726852908185,4.31905,2546.7,2546.6,0.39266]
[1726852908489,0.39266,2546.6,2546.5,0.39266]
[1726852908689,0.98169,2546.5,2546.0,0.4878]
[1726852908885,0.39272,2546.2,2546.1,0.39272]
[1726852909187,0.39277,2545.9,2545.8,0.39277]
[1726852909383,1.01814111,2545.9,2545.8,0.39277]
[1726852910490,1.41090111,2545.9,2545.8,0.39277]
[1726852910890,1.01814111,2545.9,2545.8,0.39277]
[1726852911187,0.39278,2545.9,2545.8,0.39277]
[1726852911386,1.91999167,2545.9,2545.8,0.39277]
[1726852911590,0.39278,2545.8,2545.7,0.39278]
[1726852911789,1.92092533,2545.8,2545.7,0.39278]
[1726852912278,1.92155434,2545.8,2545.7,0.39278]
[1726852912485,0.39278,2545.8,2545.7,0.39278]
[1726852912990,1.52868108,2545.8,2545.7,0.39278]
[1726852913994,0.39277,2545.9,2545.8,0.39278]
[1726852914381,2.03478946,2546.0,2545.9,0.39276]
[1726852914587,2.03478946,2546.0,2545.9,3.45276]
[1726852914791,2.42753946,2546.0,2545.9,0.39276]
[1726852915092,6.15388633,2546.1,2546.0,0.39275]
[1726852915294,7.86013049,2546.1,2546.0,0.39275]
[1726852915989,7.46739049,2546.1,2545.7,1.46059]
[1726852916195,0.39276,2546.0,2545.9,0.39275]
[1726852916490,2.10035948,2546.0,2545.9,0.39275]
[1726852917095,4.65370581,2546.0,2545.9,0.39275]
[1726852917497,2.10035948,2546.0,2545.9,0.39275]
[1726852917991,2.10035948,2546.0,2545.7,1.46058]
[1726852917992,0.39278,2545.9,2545.8,0.39277]
[1726852918490,0.39278,2545.9,2545.7,0.39278]
[1726852918491,0.39279,2545.8,2545.7,0.39278]
[1726852918699,6.15659373,2545.8,2545.7,0.39278]
[1726852918902,0.39279,2545.7,2545.6,5.0749]
[1726852919100,4.65834576,2545.7,2545.6,5.0749]
[1726852919396,4.26555576,2545.7,2545.6,5.0749]
[1726852919992,4.26555576,2545.7,2545.6,4.5798]
[1726852919993,4.65834576,2545.7,2545.6,4.5798]
[1726852920298,4.26555576,2545.7,2545.6,4.5798]
[1726852920609,4.65834576,2545.7,2545.6,4.5798]
[1726852921201,4.65822361,2545.7,2545.6,4.5798]
[1726852921788,0.39284,2545.5,2545.0,3.2078]
[1726852921989,3.2078,2545.2,2545.0,0.3929]
[1726852922296,0.39295,2544.7,2544.6,4.52396]
[1726852922595,2.55547425,2544.7,2544.6,0.39296]
[1726852922789,4.26418239,2544.7,2544.6,0.39296]
[1726852922991,0.39297,2544.6,2544.5,0.39298]
[1726852923191,4.65700235,2544.6,2544.5,0.39298]
[1726852923404,2.10028045,2544.6,2544.5,0.39298]
[1726852923595,2.10028045,2544.6,2544.1,7.3948]
[1726852923596,0.393,2544.4,2544.1,7.3948]
[1726852923804,2.23932647,2544.3,2544.2,0.39303]
[1726852924000,2.23932647,2544.3,2544.1,4.187]
[1726852924001,0.19662201,2544.3,2544.1,4.187]
[1726852924199,2.94638695,2544.4,2544.1,4.187]
[1726852924200,2.63069574,2544.2,2544.1,4.187]
[1726852924405,2.63069574,2544.2,2544.1,4.58004]
[1726852924406,2.23766574,2544.2,2544.1,4.58004]
[1726852925407,0.19662201,2544.2,2544.1,4.58004]
[1726852925595,2.04104373,2544.3,2544.2,0.39303]
[1726852925905,2.237677,2544.3,2544.2,0.39303]
[1726852926602,0.19663327,2544.3,2544.1,4.187]
[1726852926803,0.19663327,2544.3,2544.0,5.0792]
[1726852926804,2.04104373,2544.3,2544.0,4.131]
[1726852927006,7.898977,2544.2,2543.5,11.379]
[1726852927300,7.898977,2544.2,2543.5,4.131]
[1726852927301,1.52856826,2543.6,2543.5,4.131]
[1726852927509,0.39312,2543.6,2543.4,3.60094]
[1726852927805,1.01835719,2543.5,2543.4,3.60094]
[1726852928205,1.01835719,2543.6,2543.5,0.39313]
[1726852928799,1.41145719,2543.8,2543.5,0.39313]
[1726852928999,1.01835719,2543.8,2543.5,3.06]
[1726852929198,5.20886719,2543.9,2543.2,0.943]
[1726852929404,0.39315,2543.5,2543.2,1.33617]
[1726852929594,0.39316,2543.4,2543.2,1.33617]
[1726852929797,0.4533,2543.5,2543.2,0.39317]
[1726852929996,0.39316,2543.4,2543.2,0.39317]
[1726852930198,0.39317,2543.3,2543.1,0.39319]
[1726852930401,0.39316,2543.4,2543.1,0.39318]
[1726852930698,0.39317,2543.3,2543.1,0.39319]
[1726852930902,3.2078,2543.3,2543.1,0.39319]
[1726852931210,0.84644,2543.5,2542.9,3.5232]
[1726852931409,0.84644,2543.5,2543.3,0.39317]
[1726852931900,0.84644,2543.5,2543.3,0.39315]
[1726852932107,0.39315,2543.4,2543.2,0.39317]
[1726852932308,0.84644,2543.5,2543.2,0.39317]
[1726852932507,0.39316,2543.4,2543.2,0.39317]
[1726852933808,0.4533,2543.5,2543.1,3.06]
[1726852934001,0.84645,2543.5,2543.2,0.39317]
[1726852934201,0.84645,2543.5,2543.3,0.39316]
[1726852934504,0.84645,2543.5,2543.2,0.39317]
[1726852934702,0.84645,2543.5,2543.3,0.39316]
[1726852935308,0.39315,2543.4,2543.2,0.39317]
[1726852935503,0.4533,2543.5,2543.4,0.39315]
[1726852935696,0.4821,2543.7,2543.4,3.06]
[1726852935902,0.4821,2543.7,2543.5,0.39313]
[1726852935903,0.87521,2543.7,2543.5,0.39313]
[1726852936306,3.2078,2543.6,2542.9,7.802]
[1726852936603,3.60097,2543.3,2543.1,0.39319]
[1726852937002,0.4681,2543.2,2543.1,0.39319]
[1726852937208,0.86128,2543.2,2543.0,0.3932]
[1726852937411,0.86128,2543.2,2542.9,3.671]
[1726852937412,0.4681,2543.2,2543.1,0.3932]
[1726852937711,1.35109,2543.2,2543.0,0.39321]
[1726852938110,0.3932,2543.1,2542.9,0.39322]
[1726852938417,1.35109,2543.2,2543.0,0.39321]
[1726852938707,11.171,2543.1,2541.5,4.131]
[1726852938910,6.2678,2542.1,2541.3,4.6359]
[1726852939106,3.60116,2542.1,2541.8,0.39339]
[1726852939311,3.60116,2542.1,2541.6,3.2078]
[1726852939606,0.98346,2541.9,2541.3,4.1519]
[1726852939811,3.60122,2541.7,2541.4,0.39345]
[1726852940004,0.39343,2541.6,2541.4,0.39346]
[1726852940212,0.39343,2541.6,2540.8,3.2078]
[1726852940213,0.98358,2541.6,2540.8,3.2078]
[1726852940509,3.2078,2541.5,2540.8,3.06]
[1726852940707,3.2078,2541.5,2540.8,6.2678]
[1726852940708,0.98362,2541.5,2540.8,6.2678]
[1726852941011,0.9625,2542.2,2540.5,4.1643]
[1726852941012,3.2078,2541.1,2540.5,4.1643]
[1726852941214,3.2078,2541.1,2540.6,3.06]
[1726852941608,3.2078,2541.1,2541.0,0.39352]
[1726852941810,3.2078,2541.1,2540.6,3.06]
[1726852942128,3.2078,2541.1,2540.9,0.39353]
[1726852942308,3.2078,2541.1,2541.0,0.39352]
[1726852942512,0.4515,2541.5,2541.0,6.0]
[1726852942712,3.2078,2541.7,2541.6,0.39343]
[1726852943211,3.2078,2541.7,2541.4,0.39345]
[1726852943410,3.2078,2541.7,2541.5,0.39344]
[1726852943609,3.2078,2541.7,2541.6,0.39343]
[1726852943918,3.2078,2541.7,2541.6,4.32783]
[1726852944105,3.60117,2542.0,2541.6,3.9344]
[1726852944310,3.2078,2542.0,2541.8,0.3934]
[1726852944515,3.60117,2542.0,2541.7,0.3934]
[1726852944708,3.60117,2542.0,2541.3,0.98366]
[1726852944908,3.60117,2542.0,2541.7,0.3934]
[1726852945216,3.2078,2542.0,2541.4,0.98366]
[1726852945406,3.2078,2542.0,2541.5,0.39343]
[1726852945606,3.2078,2542.0,2541.4,3.2078]
[1726852945607,0.39339,2541.9,2541.4,3.2078]
[1726852945814,0.39341,2541.8,2541.5,0.39343]
[1726852946313,3.2078,2542.0,2541.4,3.2078]
[1726852946314,3.2078,2542.0,2541.6,0.39343]
[1726852946506,3.2078,2542.0,2541.7,0.3934]
[1726852946703,3.2078,2542.0,2541.4,3.2078]
[1726852946704,3.60117,2542.0,2541.4,3.2078]
[1726852946914,3.60117,2542.0,2541.8,0.3934]
[1726852947112,0.39338,2541.9,2541.6,0.39342]
[1726852947312,3.2078,2542.0,2541.4,3.2078]
[1726852947504,0.39338,2541.9,2541.6,0.39342]
[1726852947708,3.60118,2542.0,2541.7,0.3934]
[1726852948008,3.60118,2542.0,2541.6,0.39342]
[1726852948009,0.39339,2541.9,2541.6,0.39342]
[1726852948204,3.2078,2542.0,2541.5,0.39344]
[1726852948418,0.39343,2541.6,2541.4,0.39346]
[1726852948817,0.39346,2541.4,2541.2,4.52449]
[1726852949009,0.39347,2541.3,2541.2,4.131]
[1726852949214,3.60127,2541.4,2541.2,4.131]
[1726852949415,3.2078,2541.4,2541.2,4.52449]
[1726852949916,0.39345,2541.5,2541.2,4.52449]
[1726852950216,0.4714,2541.6,2541.3,0.39346]
[1726852950522,0.86483,2541.6,2541.4,0.39346]
[1726852950817,0.39345,2541.5,2541.3,0.39346]
[1726852951210,0.86484,2541.6,2541.3,0.39346]
[1726852951515,0.39345,2541.5,2540.9,0.98383]
[1726852951816,0.39345,2541.5,2541.3,0.39347]
[1726852952014,0.86484,2541.6,2540.9,0.98383]
[1726852952210,0.39344,2541.5,2541.3,0.39346]
[1726852952409,0.39345,2541.5,2541.3,0.39346]
[1726852952809,0.86484,2541.6,2541.4,0.39346]
[1726852953011,0.39346,2541.5,2541.3,0.39347]
[1726852953211,0.39346,2541.5,2540.9,0.98383]
[1726852953407,0.39346,2541.5,2540.1,0.39366]
[1726852953408,0.98385,2540.9,2540.1,0.39366]
[1726852953611,3.2078,2541.0,2540.5,0.39359]
[1726852953612,0.39357,2540.7,2540.5,0.39359]
[1726852954008,0.4879,2540.8,2540.5,0.39359]
[1726852954009,0.39358,2540.6,2540.5,0.39359]
[1726852954316,0.4879,2540.8,2540.5,0.3936]
[1726852954506,0.4879,2540.8,2540.5,0.39359]
[1726852954712,0.39358,2540.7,2540.2,0.98412]